lending/lending_fUSD_20241115
["ID","MTS","AMOUNT","RATE_DAILY","PERIOD"]
[342265925,1731685833638,-549.95,9.999e-05,2]
[342265926,1731685833649,-444.73734309,9.999e-05,2]
[342265927,1731685833659,-93689.70118633,0.0001,2]
[342265928,1731685833682,-3005.0,0.0001,2]
[342265929,1731685833694,-848277.91344255,0.0001,2]
[342265930,1731685833705,-2051.230272,0.0001,2]
[342265931,1731685833717,-699943.50745796,0.0001,2]
[342265932,1731685833728,-1516.65763753,0.0001,2]
[342265933,1731685833740,-5391.0768465,0.0001,2]
[342265934,1731685833780,1000.0,0.00025,60]
[342265935,1731685837642,-500.69208295,9.973e-05,2]
[342265936,1731685837652,-317.49947987,9.973e-05,2]
[342265937,1731685837661,-500.0,9.973e-05,2]
[342265938,1731685837671,-45570.99526593,0.0001,2]
[342265939,1731685837683,-698.5184094,0.0001,2]
[342265940,1731685837695,-4998.2244,0.0001,2]
[342265941,1731685837706,-316.17,0.0001,2]
[342265942,1731685837717,-4525.04866812,0.0001,2]
[342265943,1731685837729,-2814619.07442161,0.0001,2]
[342265944,1731685837739,-154937.5902814,0.0001,2]
[342265945,1731685837748,-3229901.30051085,0.0001,2]
[342265946,1731685837760,-2825.3799,0.0001,2]
[342265947,1731685837777,-441.6816,0.0001,2]
[342265948,1731685837788,-412.35077385,0.0001,2]
[342265949,1731685837868,-1497.4,0.0001,2]
[342265950,1731685837881,-38036.55361816,0.0001,2]
[342265951,1731685837893,-22755.92778981,0.0001,2]
[342265961,1731685839294,-479959.5009259,0.0001,2]
[342265962,1731685839549,-8003.87740261,0.0001,2]
[342265964,1731685839564,-803.85027549,0.0001,2]
[342265965,1731685839575,-881.52,0.0001,2]
[342265966,1731685839586,-1421.9,0.0001,2]
[342265967,1731685839598,-328.68,0.0001,2]
[342265968,1731685839609,-536.25,0.0001,2]
[342265969,1731685839621,-687.64,0.0001,2]
[342265970,1731685839632,-895.04,0.0001,2]
[342265971,1731685839755,-525.36,9.8e-05,2]
[342265972,1731685839767,-1581.4732,9.8e-05,2]
[342265973,1731685839777,-780.74559825,0.0001,2]
[342265974,1731685839789,-275.7,0.0001,2]
[342265976,1731685839928,-6030.99999996,0.0001,2]
[342265977,1731685839940,-7680.72296948,0.0001,2]
[342265978,1731685839952,-826.64233858,0.0001,2]
[342265979,1731685839964,-3966.11640005,0.0001,2]
[342265980,1731685839976,-3673.2765684,0.0001,2]
[342265981,1731685839988,-920.79448274,0.0001,2]
[342265986,1731685842526,-17598.4,0.0001,2]
[342265987,1731685842538,-3758.4936604,0.0001,2]
[342265988,1731685842643,-3000.0,0.0001,2]
[342265989,1731685842655,-44494.41117201,0.0001,2]
[342265990,1731685842666,-5121.81911751,0.0001,2]
[342265991,1731685842678,-444.40410875,0.0001,2]
[342265992,1731685842759,-17837.2795,0.0001,2]
[342265993,1731685842771,-12037.7639959,0.0001,2]
[342265994,1731685842782,-4998.17488479,0.0001,2]
[342265995,1731685842793,-400.28548107,0.0001,2]
[342266070,1731685845526,-304323.53615648,0.0001,2]
[342266073,1731685845538,-35798.891,0.0001,2]
[342266087,1731685845661,-500.0,9.893e-05,2]
[342266089,1731685845671,-392.93425058,0.0001,2]
[342266091,1731685845682,-2344.15813948,0.0001,2]
[342266093,1731685845694,-181004.06031594,0.0001,2]
[342266094,1731685845704,-6529.80190714,0.0001,2]
[342266095,1731685845715,-1049650.00000084,0.0001,2]
[342266096,1731685845792,-1997.52648428,0.0001,2]
[342266097,1731685845804,-342.5,0.0001,2]
[342266098,1731685845831,-32766.68871697,0.0001,2]
[342266099,1731685845843,-1060.21728667,0.0001,2]
[342266100,1731685845854,-8782.8,0.0001,2]
[342266101,1731685845935,-1000.0,9.8e-05,2]
[342266102,1731685845946,-494.0,9.9e-05,2]
[342266103,1731685845958,-783.67340599,9.9e-05,2]
[342266104,1731685845971,-992.47947754,9.9e-05,2]
[342266105,1731685845982,-1952.41640053,9.9e-05,2]
[342266319,1731685901371,10000.0,0.00025,60]
[342266320,1731685953960,10000.0,0.00025,60]
[342266321,1731685986643,1824.8,0.00025,60]
[342266322,1731686115947,150.0,8.36e-05,2]
[342266323,1731686115970,150.0,8.36e-05,2]
[342266324,1731686115998,150.0,8.36e-05,2]
[342266325,1731686116025,34096.94,8.36e-05,2]
[342266326,1731686121217,157.506,0.00025,60]
[342266327,1731686135014,250.0,8.252e-05,2]
[342266348,1731686229876,1071.39,8.219e-05,2]
[342266349,1731686239032,100000.0,0.00025,60]
[342266350,1731686241450,100000.0,0.00025,60]
[342266351,1731686243100,100000.0,0.00025,60]
[342266352,1731686244566,100000.0,0.00025,60]
[342266353,1731686245666,100000.0,0.00025,60]
[342266354,1731686337692,250.0,8.265e-05,2]
[342266355,1731686368729,200.0,8.265e-05,2]
[342266371,1731686511872,23900.0,8.371e-05,2]
[342266374,1731686536574,1244.84,8.371e-05,2]
[342266379,1731686566551,823.0388691,8.365e-05,2]
[342266380,1731686567252,-150.0,8.365e-05,2]
[342266381,1731686567929,-150.0,8.365e-05,2]
[342266382,1731686568630,-150.0,8.365e-05,2]
[342266383,1731686569983,-150.0,8.365e-05,2]
[342266384,1731686570558,-150.0,8.365e-05,2]
[342266385,1731686571103,-150.0,8.365e-05,2]
[342266387,1731686571666,-276.9611309,8.365e-05,2]
[342266388,1731686571694,-154.21,8.547e-05,2]
[342266389,1731686571719,-154.21,8.549e-05,2]
[342266390,1731686571746,-154.21,8.551e-05,2]
[342266391,1731686571780,-154.21,8.554e-05,2]
[342266392,1731686571810,-154.21,8.556e-05,2]
[342266393,1731686571847,-154.21,8.559e-05,2]
[342266394,1731686571877,-154.21,8.561e-05,2]
[342266395,1731686571909,-154.21,8.563e-05,2]
[342266396,1731686571935,-154.21,8.566e-05,2]
[342266397,1731686571961,-154.21,8.568e-05,2]
[342266398,1731686571985,-154.21,8.57e-05,2]
[342266399,1731686572010,-154.21,8.573e-05,2]
[342266400,1731686572049,-154.21,8.575e-05,2]
[342266401,1731686572075,-154.21,8.578e-05,2]
[342266402,1731686572101,-154.21,8.58e-05,2]
[342266403,1731686572128,-154.21,8.582e-05,2]
[342266404,1731686572155,-154.21,8.585e-05,2]
[342266405,1731686572181,-154.21,8.587e-05,2]
[342266406,1731686572209,-154.21,8.59e-05,2]
[342266407,1731686572235,-500.0,8.597e-05,2]
[342266408,1731686572265,-485.42,8.605e-05,2]
[342266409,1731686572291,-2840.5,8.624e-05,2]
[342266410,1731686572315,-250.0,8.638e-05,2]
[342266411,1731686572342,-1300.0,9e-05,3]
[342266412,1731686572369,-150.0,9.041e-05,2]
[342266413,1731686572394,-300.0,9.041e-05,2]
[342266414,1731686572419,-432.81,9.041e-05,2]
[342266415,1731686572443,-763.46,9.041e-05,2]
[342266416,1731686572468,-763.46,9.041e-05,2]
[342266417,1731686572493,-432.81,9.041e-05,2]
[342266418,1731686572519,-260.61,9.041e-05,2]
[342266419,1731686572543,-432.81,9.041e-05,2]
[342266420,1731686572569,-432.81,9.041e-05,2]
[342266421,1731686572594,-432.81,9.041e-05,2]
[342266422,1731686572618,-432.81,9.041e-05,2]
[342266423,1731686572643,-432.81,9.041e-05,2]
[342266424,1731686572667,-2700.0,9.1e-05,3]
[342266425,1731686572692,-432.81,9.11e-05,2]
[342266426,1731686572716,-763.46,9.11e-05,2]
[342266427,1731686572741,-763.46,9.11e-05,2]
[342266428,1731686572768,-432.81,9.11e-05,2]
[342266429,1731686572792,-763.46,9.11e-05,2]
[342266430,1731686572817,-432.81,9.11e-05,2]
[342266431,1731686572841,-1000.0,9.123e-05,2]
[342266432,1731686572867,-161.69,9.123e-05,2]
[342266433,1731686572891,-150.0,9.178e-05,2]
[342266434,1731686572914,-150.0,9.178e-05,2]
[342266435,1731686572938,-362.4,9.178e-05,2]
[342266436,1731686572962,-150.0,9.178e-05,2]
[342266437,1731686572987,-150.0,9.178e-05,2]
[342266438,1731686573011,-362.4,9.178e-05,2]
[342266439,1731686573038,-362.4,9.178e-05,2]
[342266440,1731686573061,-150.0,9.178e-05,2]
[342266441,1731686573402,-362.4,9.178e-05,2]
[342266442,1731686573426,-362.4,9.178e-05,2]
[342266443,1731686573450,-150.0,9.178e-05,2]
[342266444,1731686573474,-362.4,9.178e-05,2]
[342266445,1731686573499,-362.4,9.178e-05,2]
[342266446,1731686573534,-777.09,9.178e-05,2]
[342266447,1731686573561,-362.32,9.178e-05,2]
[342266448,1731686573585,-1527.98,9.187e-05,2]
[342266449,1731686573612,-150.0,9.19e-05,2]
[342266450,1731686573637,-150.0,9.19e-05,2]
[342266451,1731686573662,-432.81,9.19e-05,2]
[342266452,1731686573688,-362.4,9.19e-05,2]
[342266453,1731686573713,-300.0,9.19e-05,2]
[342266454,1731686573738,-150.0,9.19e-05,2]
[342266455,1731686573770,-4100.0,9.2e-05,3]
[342266456,1731686573795,-150.0,9.2e-05,2]
[342266457,1731686573819,-362.4,9.2e-05,2]
[342266458,1731686573844,-432.81,9.2e-05,2]
[342266459,1731686573868,-150.0,9.2e-05,2]
[342266460,1731686573893,-150.0,9.2e-05,2]
[342266461,1731686573918,-150.0,9.2e-05,2]
[342266462,1731686573942,-150.0,9.2e-05,2]
[342266463,1731686573970,-150.0,9.2e-05,2]
[342266464,1731686573996,-432.81,9.2e-05,2]
[342266465,1731686574024,-362.4,9.2e-05,2]
[342266466,1731686574050,-763.46,9.2e-05,2]
[342266467,1731686574075,-763.46,9.2e-05,2]
[342266468,1731686574104,-166.38,9.286e-05,2]
[342266469,1731686574131,-5500.0,9.3e-05,3]
[342266470,1731686574157,-150.0,9.3e-05,2]
[342266471,1731686574183,-664.24,9.3e-05,2]
[342266472,1731686574208,-301.84,9.3e-05,2]
[342266473,1731686574234,-724.8,9.3e-05,2]
[342266474,1731686574259,-150.0,9.3e-05,2]
[342266475,1731686574289,-308.49,9.3e-05,2]
[342266476,1731686574317,-432.81,9.3e-05,2]
[342266477,1731686574345,-302.84,9.3e-05,2]
[342266478,1731686574371,-1500.0,9.397e-05,2]
[342266479,1731686574397,-6900.0,9.4e-05,3]
[342266480,1731686574422,-668.53894307,9.428e-05,2]
[342266481,1731686574447,-300.0,9.452e-05,2]
[342266482,1731686574471,-1500.0,9.462e-05,2]
[342266483,1731686574495,-1500.0,9.478e-05,2]
[342266484,1731686574525,-1300.0,9.5e-05,3]
[342266485,1731686574551,-5935.03,9.532e-05,2]
[342266486,1731686574576,-1500.0,9.537e-05,2]
[342266487,1731686574603,-1500.0,9.558e-05,2]
[342266488,1731686574630,-1300.0,9.6e-05,3]
[342266489,1731686574657,-1500.0,9.6e-05,2]
[342266490,1731686574683,-1500.0,9.66e-05,2]
[342266491,1731686574709,-166.38,9.669e-05,2]
[342266492,1731686574735,-677.78,9.67e-05,2]
[342266493,1731686574761,-499.99,9.67e-05,2]
[342266494,1731686574794,-6145.75,9.67e-05,2]
[342266495,1731686574820,-824.4,9.67e-05,2]
[342266496,1731686574844,-1501.88,9.67e-05,2]
[342266497,1731686574868,-150.99,9.67e-05,2]
[342266498,1731686574893,-1340.33,9.67e-05,2]
[342266499,1731686574918,-8667.25,9.67e-05,2]
[342266500,1731686574946,-485.42,9.681e-05,2]
[342266501,1731686574970,-161.69,9.694e-05,2]
[342266502,1731686574995,-1300.0,9.7e-05,3]
[342266503,1731686575021,-9121.0152,9.7e-05,2]
[342266504,1731686575047,-32072.9952,9.7e-05,2]
[342266505,1731686575071,-150.0,9.714e-05,2]
[342266506,1731686575096,-150.0,9.715e-05,2]
[342266507,1731686575122,-150.0,9.731e-05,2]
[342266508,1731686575148,-150.0,9.735e-05,2]
[342266509,1731686575173,-150.0,9.736e-05,2]
[342266510,1731686575198,-150.0,9.746e-05,2]
[342266511,1731686575223,-150.0,9.746e-05,2]
[342266512,1731686575248,-150.0,9.746e-05,2]
[342266513,1731686575275,-150.0,9.749e-05,2]
[342266514,1731686575300,-150.0,9.75e-05,2]
[342266515,1731686575327,-150.0,9.751e-05,2]
[342266516,1731686575353,-150.0,9.757e-05,2]
[342266517,1731686575379,-150.0,9.76e-05,2]
[342266518,1731686575404,-150.0,9.768e-05,2]
[342266519,1731686575430,-150.0,9.772e-05,2]
[342266520,1731686575455,-150.0,9.772e-05,2]
[342266521,1731686575721,-150.0,9.773e-05,2]
[342266522,1731686575749,-150.0,9.774e-05,2]
[342266523,1731686575779,-150.0,9.774e-05,2]
[342266524,1731686575803,-150.0,9.774e-05,2]
[342266525,1731686575829,-150.0,9.776e-05,2]
[342266526,1731686575854,-150.0,9.779e-05,2]
[342266527,1731686575877,-150.0,9.78e-05,2]
[342266528,1731686575902,-150.0,9.789e-05,2]
[342266529,1731686575927,-150.0,9.789e-05,2]
[342266530,1731686575953,-150.0,9.791e-05,2]
[342266531,1731686575979,-150.0,9.797e-05,2]
[342266532,1731686576005,-150.0,9.799e-05,2]
[342266533,1731686576034,-1300.0,9.8e-05,3]
[342266534,1731686576059,-1000.0,9.8e-05,2]
[342266535,1731686576084,-1480.955,9.8e-05,2]
[342266536,1731686576108,-14712.5498,9.8e-05,2]
[342266537,1731686576133,-28189.9579,9.8e-05,2]
[342266538,1731686576158,-50882.3009,9.8e-05,2]
[342266539,1731686576183,-1000.0,9.8e-05,2]
[342266540,1731686576208,-390.7027,9.8e-05,2]
[342266541,1731686576232,-2500.0,9.8e-05,2]
[342266542,1731686576259,-150.0,9.802e-05,2]
[342266543,1731686576286,-150.0,9.803e-05,2]
[342266544,1731686576313,-150.0,9.803e-05,2]
[342266545,1731686576336,-150.0,9.809e-05,2]
[342266546,1731686576363,-150.0,9.812e-05,2]
[342266547,1731686576388,-150.0,9.814e-05,2]
[342266548,1731686576414,-150.0,9.817e-05,2]
[342266549,1731686576439,-150.0,9.817e-05,2]
[342266550,1731686576465,-150.0,9.818e-05,2]
[342266551,1731686576491,-150.0,9.82e-05,2]
[342266552,1731686576523,-150.0,9.821e-05,2]
[342266553,1731686576549,-150.0,9.822e-05,2]
[342266554,1731686576577,-150.0,9.826e-05,2]
[342266555,1731686576606,-150.0,9.827e-05,2]
[342266556,1731686576633,-150.0,9.828e-05,2]
[342266557,1731686576659,-150.0,9.831e-05,2]
[342266558,1731686576686,-150.0,9.832e-05,2]
[342266559,1731686576712,-150.0,9.834e-05,2]
[342266560,1731686576737,-150.0,9.836e-05,2]
[342266561,1731686576761,-150.0,9.836e-05,2]
[342266562,1731686576789,-150.0,9.841e-05,2]
[342266563,1731686576814,-150.0,9.842e-05,2]
[342266564,1731686576840,-150.0,9.843e-05,2]
[342266565,1731686576866,-150.0,9.848e-05,2]
[342266566,1731686576893,-150.0,9.848e-05,2]
[342266567,1731686576919,-150.0,9.849e-05,2]
[342266568,1731686576946,-150.0,9.856e-05,2]
[342266569,1731686576972,-150.0,9.881e-05,2]
[342266570,1731686576999,-150.0,9.885e-05,2]
[342266571,1731686577032,-150.0,9.888e-05,2]
[342266572,1731686577058,-150.0,9.889e-05,2]
[342266573,1731686577086,-150.0,9.893e-05,2]
[342266574,1731686577114,-777.43071594,9.9e-05,2]
[342266575,1731686577140,-1919.0,9.9e-05,3]
[342266576,1731686577165,-278104.8368,9.9e-05,2]
[342266577,1731686577190,-30898.2086,9.9e-05,2]
[342266578,1731686577215,-1000.0,9.9e-05,2]
[342266579,1731686577243,-150.0,9.903e-05,2]
[342266580,1731686577273,-150.0,9.904e-05,2]
[342266581,1731686577298,-150.0,9.905e-05,2]
[342266582,1731686577326,-150.0,9.91e-05,2]
[342266583,1731686577352,-150.0,9.911e-05,2]
[342266584,1731686577379,-150.0,9.915e-05,2]
[342266585,1731686577405,-1845.97,9.918e-05,2]
[342266586,1731686577431,-167.512,9.918e-05,2]
[342266587,1731686577460,-150.0,9.92e-05,2]
[342266588,1731686577488,-150.0,9.926e-05,2]
[342266589,1731686577519,-150.0,9.926e-05,2]
[342266590,1731686577543,-150.0,9.929e-05,2]
[342266591,1731686577569,-150.0,9.93e-05,2]
[342266592,1731686577599,-150.0,9.932e-05,2]
[342266593,1731686577625,-150.0,9.933e-05,2]
[342266594,1731686577653,-255.0,9.945e-05,2]
[342266595,1731686577678,-150.0,9.945e-05,2]
[342266596,1731686577703,-420.0,9.945e-05,2]
[342266597,1731686577731,-150.0,9.946e-05,2]
[342266598,1731686577756,-150.0,9.947e-05,2]
[342266599,1731686577784,-150.0,9.952e-05,2]
[342266600,1731686577810,-150.0,9.953e-05,2]
[342266601,1731686577835,-150.0,9.955e-05,2]
[342266602,1731686578130,-150.0,9.956e-05,2]
[342266603,1731686578157,-150.0,9.958e-05,2]
[342266604,1731686578182,-150.0,9.958e-05,2]
[342266605,1731686578208,-150.0,9.958e-05,2]
[342266606,1731686578232,-150.0,9.959e-05,2]
[342266607,1731686578258,-150.0,9.96e-05,2]
[342266608,1731686578286,-500.0,9.973e-05,2]
[342266609,1731686578311,-273.89170132,9.973e-05,2]
[342266610,1731686578338,-150.0,9.98e-05,2]
[342266611,1731686578364,-150.0,9.983e-05,2]
[342266612,1731686578390,-150.0,9.986e-05,2]
[342266613,1731686578417,-150.0,9.988e-05,2]
[342266614,1731686578441,-699.325768,9.992e-05,2]
[342266615,1731686578465,-1020.6659499,9.992e-05,2]
[342266616,1731686578491,-776.2123746,9.993e-05,2]
[342266617,1731686578521,-853.0989812,9.993e-05,2]
[342266618,1731686578546,-1125.1681959,9.993e-05,2]
[342266619,1731686578573,-1229.6704418,9.993e-05,2]
[342266620,1731686578599,-444.7373431,9.999e-05,2]
[342266621,1731686578627,-557.7,9.999e-05,2]
[342266622,1731686578660,-1426536.95435427,0.0001,2]
[342266624,1731686580483,-150.0,0.0001,2]
[342266625,1731686580543,-150.0,0.0001,2]
[342266626,1731686580618,-150.0,0.0001,2]
[342266627,1731686580685,-150.0,0.0001,2]
[342266628,1731686580736,-150.0,0.0001,2]
[342266629,1731686580796,-198.11,0.0001,2]
[342266630,1731686581188,5000.0,9.8e-05,2]
[342266633,1731686596659,500.0,0.0002475,120]
[342266635,1731686607652,2000.0,0.00024803,120]
[342266636,1731686618385,200.0,0.00024928,120]
[342266637,1731686618604,-150.0,9.747e-05,2]
[342266649,1731686793238,157.472,0.00025,60]
[342266653,1731686832130,-698.384,8.524e-05,2]
[342266654,1731686832153,-250.0,9.23e-05,2]
[342266655,1731686832176,-1000.0,9.475e-05,2]
[342266656,1731686832199,-300.0,9.699e-05,2]
[342266657,1731686832226,-1000.0,9.7e-05,2]
[342266658,1731686832247,-2500.0,9.7e-05,2]
[342266659,1731686832269,-2113.8343131,9.7e-05,2]
[342266660,1731686832290,-163.11,9.779e-05,2]
[342266661,1731686832312,-5000.0,9.8e-05,2]
[342266662,1731686832333,-763.3,9.8e-05,2]
[342266663,1731686832355,-169.11,9.8e-05,2]
[342266664,1731686832377,-553.45,9.8e-05,2]
[342266665,1731686832398,-1500.0,9.856e-05,2]
[342266666,1731686832419,-21189.99085483,9.9e-05,2]
[342266667,1731686832441,-392.14251259,9.9e-05,2]
[342266678,1731686982131,-150.0,9e-05,2]
[342266679,1731686982152,-435.85,9.184e-05,2]
[342266680,1731686982174,-508.74,9.297e-05,2]
[342266681,1731686982196,-207.01,9.297e-05,2]
[342266682,1731686982218,-207.01,9.343e-05,2]
[342266683,1731686982240,-150.0,9.734e-05,2]
[342266684,1731686982264,-150.0,9.737e-05,2]
[342266685,1731686982286,-150.0,9.745e-05,2]
[342266686,1731686982306,-428.74,9.8e-05,2]
[342266687,1731686982327,-150.0,9.816e-05,2]
[342266688,1731686982352,-150.0,9.82e-05,2]
[342266689,1731686982371,-150.99,9.82e-05,2]
[342266690,1731686982393,-150.0,9.837e-05,2]
[342266691,1731686982414,-150.0,9.864e-05,2]
[342266692,1731686982436,-607.85748741,9.9e-05,2]
[342266693,1731686982456,-1929.80251259,9.9e-05,2]
[342266698,1731687020885,998.0,0.00025,60]
[342266711,1731687031588,-250.0,8.987e-05,2]
[342266712,1731687031598,-2056.5,9.219e-05,2]
[342266713,1731687031607,-196.59820368,9.219e-05,2]
[342266716,1731687031644,-173.65179632,9.219e-05,2]
[342266717,1731687031655,-570.19748741,9.9e-05,2]
[342266718,1731687031673,-4083.15071634,9.9e-05,2]
[342266719,1731687031699,-916.84928366,9.9e-05,2]
[342266720,1731687031707,-2523.6,9.9e-05,2]
[342266721,1731687031716,-150.0,9.914e-05,2]
[342266722,1731687031724,-150.0,9.915e-05,2]
[342266723,1731687031733,-150.0,9.917e-05,2]
[342266724,1731687031741,-150.0,9.931e-05,2]
[342266725,1731687031749,-150.0,9.954e-05,2]
[342266726,1731687031758,-150.0,9.956e-05,2]
[342266727,1731687031766,-583.0,9.973e-05,2]
[342266728,1731687031774,-500.0,9.973e-05,2]
[342266729,1731687031783,-1500.0,9.978e-05,2]
[342266730,1731687031791,-150.0,9.98e-05,2]
[342266731,1731687031799,-2009.5950946,9.992e-05,2]
[342266732,1731687031807,-919.7702749,9.992e-05,2]
[342266733,1731687031815,-2274.4064024,9.993e-05,2]
[342266734,1731687031824,-2539.2177103,9.993e-05,2]
[342266735,1731687031832,-150.0,9.993e-05,2]
[342266736,1731687031840,-1040.9715906,9.993e-05,2]
[342266737,1731687031848,-1162.1729063,9.993e-05,2]
[342266738,1731687031857,-333.55300732,9.999e-05,2]
[342266739,1731687031867,-534.46,9.999e-05,2]
[342266740,1731687031876,-49292.75040124,0.0001,2]
[342266741,1731687031889,-111883.81577471,0.0001,2]
[342266742,1731687031901,-373240.7505254,0.0001,2]
[342266743,1731687031911,-2772.81914242,0.0001,2]
[342266744,1731687031922,-170874.97547584,0.0001,2]
[342266745,1731687031933,-2498.68,0.0001,2]
[342266746,1731687031944,-1854.29253198,0.0001,2]
[342266747,1731687031969,-7779.96732424,0.0001,2]
[342266760,1731687037653,-1074.2796504,0.0001,2]
[342266761,1731687037669,-2982.03393507,0.0001,2]
[342266762,1731687037681,-1670.07499393,0.0001,2]
[342266764,1731687037693,-1486.71128,0.0001,2]
[342266765,1731687037707,-6317226.24963785,0.0001,2]
[342266766,1731687037815,-1994.37105779,0.0001,2]
[342266825,1731687040562,-141334.66355806,0.0001,2]
[342266826,1731687040578,-75962.15525576,0.0001,2]
[342266827,1731687040626,-373.595,0.0001,2]
[342266828,1731687040640,-41576.04023316,0.0001,2]
[342266829,1731687040651,-6115.80748383,0.0001,2]
[342266830,1731687040665,-2894.20174678,0.0001,2]
[342266831,1731687040677,-760.54929071,0.0001,2]
[342266832,1731687040701,-566.3164432,0.0001,2]
[342266833,1731687040713,-786.69942459,0.0001,2]
[342266834,1731687040724,-3324.19161804,0.0001,2]
[342266835,1731687040736,-680.19204203,0.0001,2]
[342267033,1731687042910,-1505.54125192,0.0001,2]
[342267051,1731687043073,-4525.5092401,0.0001,2]
[342267053,1731687043085,-26030.79246151,0.0001,2]
[342267056,1731687043097,-88749.53808238,0.0001,2]
[342267307,1731687045603,-1346.76627905,0.0001,2]
[342267313,1731687045658,-4833.89999999,0.0001,2]
[342267330,1731687045816,-4125.57952602,0.0001,2]
[342267332,1731687045827,-442.6042996,0.0001,2]
[342267335,1731687045839,-562.37553563,0.0001,2]
[342267351,1731687045985,-42159.42658796,0.0001,2]
[342267357,1731687046036,-37558.46387185,0.0001,2]
[342267361,1731687046062,-3345.8267,0.0001,2]
[342267364,1731687046084,-739.16,0.0001,2]
[342267373,1731687046156,-95114.77008627,0.0001,2]
[342267376,1731687046177,-27260.40158141,0.0001,2]
[342267589,1731687071308,100000.0,0.00025,60]
[342267590,1731687072531,100000.0,0.00025,60]
[342267591,1731687073705,100000.0,0.00025,60]
[342267592,1731687074815,100000.0,0.00025,60]
[342267593,1731687075818,100000.0,0.00025,60]
[342267595,1731687123614,1794.23,8.219e-05,2]
[342267597,1731687197231,500.0,0.00024746,120]
[342267598,1731687216390,200.0,0.00024794,120]
[342267600,1731687466135,157.51,0.00025,60]
[342267601,1731687522645,150.0,0.00025,60]
[342267602,1731687523030,150.0,0.00025,60]
[342267603,1731687523484,165.219094,0.00025,60]
[342267604,1731687614562,34439.11230368,0.00025,60]
[342267605,1731687648680,2000.0,0.00025,60]
[342267606,1731687715856,500.0,8.47e-05,2]
[342267607,1731687720475,393.0,8.47e-05,2]
[342267608,1731687748171,250.0,8.465e-05,2]
[342267609,1731687752214,200.0,8.474e-05,2]
[342267610,1731687797153,500.0,0.0002481,120]
[342267611,1731687805970,2816.2,8.461e-05,2]
[342267612,1731687806614,2000.0,0.00024898,120]
[342267613,1731687822310,150.0,0.00025,60]
[342267614,1731687857705,223.24,8.466e-05,2]
[342267615,1731687876639,889.04,8.158e-05,2]
[342267616,1731687882131,100000.0,0.00025,60]
[342267617,1731687884021,100000.0,0.00025,60]
[342267618,1731687885431,100000.0,0.00025,60]
[342267619,1731687886725,100000.0,0.00025,60]
[342267620,1731687887758,100000.0,0.00025,60]
[342267621,1731687908965,15006.66759067,7.999e-05,2]
[342267622,1731687919224,1704.51,8.219e-05,2]
[342267623,1731687924986,15978.03,8.202e-05,2]
[342267624,1731687936710,1856.25,8.278e-05,2]
[342267625,1731687951139,15439.95,8.212e-05,2]
[342267626,1731687966653,23900.0,8.177e-05,2]
[342267627,1731688025234,4479.02,8.219e-05,2]
[342267628,1731688037112,163.17,8.188e-05,2]
[342267630,1731688076425,866.24,8.219e-05,2]
[342267631,1731688112643,250.0,8.22e-05,2]
[342267632,1731688136947,157.481,0.00025,60]
[342267633,1731688146195,-451.81,8.532e-05,2]
[342267634,1731688146219,-13195.0207065,8.648e-05,2]
[342267635,1731688146243,-151.36,8.648e-05,2]
[342267636,1731688146267,-151.36,8.651e-05,2]
[342267637,1731688146290,-151.36,8.654e-05,2]
[342267638,1731688146314,-151.36,8.657e-05,2]
[342267639,1731688146337,-1268.58,8.658e-05,2]
[342267640,1731688146365,-151.36,8.66e-05,2]
[342267641,1731688146388,-250.0,8.66e-05,2]
[342267642,1731688146411,-151.36,8.663e-05,2]
[342267643,1731688146436,-151.36,8.666e-05,2]
[342267644,1731688146460,-151.36,8.668e-05,2]
[342267645,1731688146484,-2876.25,8.671e-05,2]